Cogmind - Beta 14 @@@ ROGUE MODE // 2024.12.15 @ 00:07:35 Player: thrax Result: Destroyed by 58-7S4(R) with Subdweller Laser Performance ------------- Evolutions (0) 0 Regions Visited (2) 400 Robots Destroyed (16) 80 Value Destroyed (533) 533 Prototype IDs (0) 0 Alien Tech Used (0) 0 Bonus (0) 0 TOTAL SCORE: 1013 Bonus ------- None Cogmind --------- Core Integrity 0/250 Matter 295/300 Energy 123/125 System Corruption 1% Temperature Cool (6) Movement Rolling (80) Location -10/Subcaves Parts ------- > --- POWER (1) -------- Light Ion Engine > --- PROPULSION (2) --- Wheel Wheel > --- UTILITY (2) ------ Signal Interpreter > --- WEAPON (2) ------- Assault Rifle Hammer > --- INVENTORY (5) ---- Aluminum Leg ECM Suite Scrap Shield Makeshift Hacking Suite Peak State ------------ > --- POWER ------------ Light Nuclear Core > --- PROPULSION ------- Aluminum Leg Aluminum Leg > --- UTILITY ---------- Signal Interpreter Light Armor Plating > --- WEAPON ----------- Medium Laser Assault Rifle > --- INVENTORY -------- Ion Engine Wheel Light Armor Plating Grenade Launcher [Rating: 9] Favorites ----------- Power Light Ion Engine Engine Light Ion Engine Power Core Light Nuclear Core Propulsion Aluminum Leg Leg Aluminum Leg Wheel Wheel Utility Signal Interpreter Processor Signal Interpreter Protection Light Armor Plating Weapon Assault Rifle Energy Gun Medium Laser Ballistic Gun Assault Rifle Launcher Grenade Launcher Impact Weapon Hammer Build | -11 -10 -10 ------- Run | Yrd Mat Sub Slots Evolved . | . . . Power . | . . . Propulsion . | . . . Utility . | . . . Weapon . | . . . Parts Attached 32 | 5 25 2 Power 6 | 1 5 . Engine 5 | 1 4 . Core 1 | . 1 . Reactor . | . . . Propulsion 11 | 2 8 1 Treads . | . . . Leg 8 | 2 6 . Wheel 3 | . 2 1 Hover . | . . . Flight . | . . . Utility 4 | . 4 . Device . | . . . Storage . | . . . Processor 1 | . 1 . Hackware . | . . . Protection 3 | . 3 . Artifact . | . . . Weapon 11 | 2 8 1 Energy Gun 1 | . 1 . Energy Cannon . | . . . Ballistic Gun 4 | 2 2 . Ballistic Cannon . | . . . Launcher 4 | . 4 . Special Weapon . | . . . Impact Weapon 2 | . 1 1 Slashing Weapon . | . . . Piercing Weapon . | . . . Special Melee Weapon . | . . . Unidentified Prototypes . | . . . Parts Lost 7 | . 5 2 Power 1 | . 1 . Propulsion 2 | . 1 1 Utility 2 | . 1 1 Weapon 2 | . 2 . Highest Loss Streak 3 | . 3 2 To Critical Strikes . | . . . Average Slot Usage (%) 86 | . 85 97 Engine 6 | . 5 14 Core 2 | . 3 . Leg 24 | . 26 . Wheel 3 | . 1 28 Processor 13 | . 13 14 Protection 12 | . 12 12 Energy Gun 3 | . 3 . Ballistic Gun 14 | . 15 14 Launcher 1 | . 1 . Impact Weapon 2 | . 1 12 Peak Build Rating 9 | 5 9 8 Average Rating 6 | 4 6 6 On Entrance 3 | . 5 6 Naked Turns . | . . . Heaviest Build 12 | 9 12 10 Greatest Support 20 | 20 20 20 Greatest Overweight (x) 2 | 2 . . Average Overweight (x) . | . . . Largest Inventory Capacity 5 | 5 5 5 Average Capacity 5 | 5 5 5 Most Carried 5 | 4 5 5 Average Carried 4 | 2 4 4 Final Capacity 5 | 5 5 5 Final Carried 5 | 4 4 5 Class Distribution -------------------- 93% | Mutant 6% | Scavenger-Mutant Dominant Class ---------------- Mutant | -10/Materials Mutant | -10/Subcaves Resources | -11 -10 -10 ----------- Run | Yrd Mat Sub Matter Collected 752 | 177 565 10 Remotely . | . . . Salvage Created 402 | . 402 . Parts 25 | . 25 . Haulers Intercepted . | . . . Recyclers Shooed . | . . . Parts Field Recycled . | . . . Retrieved Matter . | . . . Parts Self-Destructed . | . . . Prevented . | . . . Kills | -11 -10 -10 ------- Run | Yrd Mat Sub Combat Hostiles Destroyed 15 | . 15 . Guns 10 | . 10 . AOE 5 | . 5 . Classes Destroyed 3 | . 3 . Watcher 1 | . 1 . Swarmer 3 | . 3 . Grunt 12 | . 12 . Best Kill Streak 4 | . 4 . Combat Bots Only 4 | . 4 . Max Kills in Single Turn 1 | . 1 . Gunslinging . | . . . Exploded 1 | . 1 . Melee . | . . . Uniques/NPCs Destroyed . | . . . Combat | -11 -10 -10 -------- Run | Yrd Mat Sub Hostile Shots Fired 158 | . 136 22 Missed 55 | . 47 8 Damage Taken 1529 | . 1205 324 Core 269 | . 187 82 Absorbed by Shields . | . . . Core Remaining (%) 100 | 100 . . Volleys Fired 70 | . 70 . Largest 2 | . 2 . Hottest 70 | . 70 . Shots Fired 84 | . 84 . Gun 75 | . 75 . Cannon . | . . . Launcher 9 | . 9 . Special . | . . . Kinetic 58 | . 58 . Thermal 17 | . 17 . Explosive 9 | . 9 . Electromagnetic . | . . . Robot Hit Streak 7 | . 7 . Robot Miss Streak 3 | . 3 . Penetration Max . | . . . Secondary Targets . | . . . Shots Hit Robots 50 | . 50 . Core Hits 31 | . 31 . Critical Kills . | . . . Critical Parts Destroyed . | . . . Critical Strikes 1 | . 1 . Burn 1 | . 1 . Melee Attacks . | . . . Impact . | . . . Slashing . | . . . Piercing . | . . . Sneak Attacks . | . . . Combat Hostiles . | . . . Follow-up Attacks . | . . . Damage Inflicted 1096 | . 1096 . Guns 557 | . 557 . Cannons . | . . . Explosions 539 | . 539 . Melee . | . . . Ramming . | . . . Kinetic 420 | . 420 . Thermal 137 | . 137 . Explosive 539 | . 539 . Electromagnetic . | . . . Impact . | . . . Slashing . | . . . Piercing . | . . . Highest Corruption 1 | . 1 1 Average Corruption 1 | . 1 1 Corruption Purged . | . . . Corruption Blocked . | . . . Effects 13 | . 13 . Message Errors 3 | . 3 . Matter Fused 1 | . 1 . Energy Discharges 1 | . 1 . Parts Fused 1 | . 1 . Data Loss (minor) 3 | . 3 . Data Loss (major) 1 | . 1 . Weapon Failures 3 | . 3 . Overload Shots . | . . . Overflow Damage 15 | . 15 . Projectiles . | . . . Explosions 15 | . 15 . Melee . | . . . Knockbacks . | . . . Impact . | . . . Kinetic . | . . . Secondary . | . . . Self-Inflicted Damage 155 | . 155 . Shots 6 | . 6 . Rammed . | . . . Targets Rammed 1 | . 1 . Kicked 1 | . 1 . Crushed . | . . . Highest Temperature 347 | . 347 . Average Temperature 120 | . 120 . Received Heat Transfer 648 | . 558 90 Effects 2 | . 2 . Interference 2 | . 2 . Siege Activations . | . . . Robots Corrupted . | . . . Combat Hostiles . | . . . Parts Fried . | . . . Impact Corruptions . | . . . Robots Melted . | . . . Combat Hostiles . | . . . Parts Melted 1 | . 1 . Heat Transferred 481 | . 481 . Parts Sabotaged . | . . . Parts Stolen . | . . . Parts Stripped . | . . . Power Chain Reactions . | . . . Alert | -11 -10 -10 ------- Run | Yrd Mat Sub Peak Influence 244 | . 244 . Initial . | . . . Average 136 | . 146 . Maximum Alert Level 1 | . 1 . Low Security (%) 88 | 100 87 . Level 1 11 | . 12 . Level 2 . | . . . Level 3 . | . . . Level 4 . | . . . Level 5 . | . . . High Security . | . . . Max Security . | . . . Squads Dispatched 3 | . 3 . Investigation 1 | . 1 . Extermination . | . . . Reinforcement 2 | . 2 . Assault . | . . . Garrison . | . . . Intercept . | . . . Searches Triggered . | . . . Construction Impeded . | . . . Haulers Reinforced . | . . . Active Scanning Responses . | . . . Cargo Convoy Interrupts . | . . . Stealth | -11 -10 -10 --------- Run | Yrd Mat Sub Distress Signals 1 | . 1 . Communications Jammed . | . . . Distress Signals . | . . . Times Spotted 37 | . 29 8 Peak Tracking Total 6 | . 6 5 Tactical Retreats 3 | . 3 . Traps | -11 -10 -10 ------- Run | Yrd Mat Sub Traps Triggered 2 | . 2 . Indirectly . | . . . Trap Hack Attempts . | . . . Triggered . | . . . Disarmed . | . . . Reprogrammed . | . . . Reused . | . . . Traps Extracted . | . . . Installed . | . . . Triggered . | . . . Machines | -11 -10 -10 ---------- Run | Yrd Mat Sub Machines Disabled 4 | . 4 . Max in Single Turn 1 | . 1 . Machines Repaired . | . . . Machines Dismantled . | . . . Machines Sabotaged . | . . . Overloaded Fab Kills . | . . . Hacking | -11 -10 -10 --------- Run | Yrd Mat Sub Machines Accessed 2 | . 2 . Terminals 2 | . 2 . Fabricators . | . . . Repair Stations . | . . . Recycling Units . | . . . Scanalyzers . | . . . Garrison Access . | . . . Total Hacks 6 | . 6 . Successful 3 | . 3 . Failed 3 | . 3 . Catastrophic . | . . . Database Lockouts . | . . . Manual . | . . . Terminals 6 | . 6 . Fabricators . | . . . Repair Stations . | . . . Recycling Units . | . . . Scanalyzers . | . . . Garrison Access . | . . . Terminal Hacks 3 | . 3 . Branch Access Points 1 | . 1 . Recall Investigation 1 | . 1 . Zone Layout 1 | . 1 . Fabricator Hacks . | . . . Repair Station Hacks . | . . . Recycling Unit Hacks . | . . . Scanalyzer . | . . . Garrison Access Hacks . | . . . Unauthorized Hacks . | . . . Terminals . | . . . Fabricators . | . . . Repair Stations . | . . . Recycling Units . | . . . Scanalyzers . | . . . Garrison Access . | . . . Data Cores Recovered . | . . . Used . | . . . Hacking Detections 1 | . 1 . Full Trace Events . | . . . Feedback Events . | . . . Feedback Blocked . | . . . Robot Schematics Acquired . | . . . Robots Built . | . . . Authchips . | . . . Time . | . . . Total Robot Build Rating . | . . . Part Schematics Acquired . | . . . Parts Built . | . . . Authchips . | . . . Time . | . . . Total Part Build Rating . | . . . Parts Repaired . | . . . Time . | . . . Parts Recycled . | . . . Recycled Matter . | . . . Retrieved Matter . | . . . Retrieved Components . | . . . Parts Scanalyzed . | . . . Part Schematics Acquired . | . . . Parts Damaged . | . . . Bothacking | -11 -10 -10 ------------ Run | Yrd Mat Sub Used RIF Installer . | . . . Robots Hacked . | . . . Non-combat . | . . . Combat . | . . . Robot Hacks Applied . | . . . Relay Couplers Released . | . . . Fabnet Peak Effective % . | . . . Robots Rewired . | . . . Allies Hacked . | . . . Hacks Repelled . | . . . Allies | -11 -10 -10 -------- Run | Yrd Mat Sub Total Allies . | . . . Largest Group . | . . . Highest-Rated Group . | . . . Highest-Rated Ally . | . . . Total Orders . | . . . Ally Attacks . | . . . Total Damage . | . . . Kills . | . . . Allies Corrupted . | . . . Allies Melted . | . . . Intel | -11 -10 -10 ------- Run | Yrd Mat Sub Robot Analysis Total . | . . . Derelict Logs Recovered . | . . . Drone Launches . | . . . Drone Recoveries . | . . . Exploration | -11 -10 -10 ------------- Run | Yrd Mat Sub Turns Passed 1585 | 95 1361 129 Spaces Moved 1182 | 66 985 131 Core 13 | 13 . . Treads . | . . . Legs 947 | 53 894 . Wheels 222 | . 91 131 Hover . | . . . Flight . | . . . Fastest Speed 50 | 50 80 80 Average Speed 112 | 120 116 80 Slowest Speed 150 | 150 120 80 Overloaded Moves . | . . . Propulsion Burnouts . | . . . Robots Hopped . | . . . Cave-ins Triggered . | . . . Exploration Rate (%) 34 | 6 84 14 Regions Visited 2 Branch Regions 1 Pre-discovered Areas . | . . . Known Exits Taken 1 | . 1 . Unknown Exits Taken 1 | 1 . . Scrap Searched . | . . . Spaces Dug 8 | . 8 . Terrain Destroyed 57 | . 57 . Melee . | . . . Projectile . | . . . AOE 57 | . 57 . Terrain Rammed . | . . . Walls Destroyed . | . . . Machines Disabled . | . . . Actions | -11 -10 -10 --------- Run | Yrd Mat Sub Total 1345 | 79 1111 155 Wait 33 | 4 9 20 Move 1180 | 65 984 131 Hop . | . . . Pick Up 14 | 5 7 2 Fast Attach 11 | 4 7 . Attach 9 | 1 6 2 Detach 2 | . 2 . Swap 12 | . 12 . Drop 13 | . 13 . Fire 70 | . 70 . Melee . | . . . Ram . | . . . Kick 1 | . 1 . Crush . | . . . Escape Stasis . | . . . Rewire . | . . . Trap . | . . . Miscellaneous . | . . . Route ------- -11/Scrapyard -10/Materials (discovered 5 exits: *Mat x3 / *Min / *Sub) -10/Subcaves History --------- Turn | Location | Event 16 | -11/Scrapyard | Discovered new exit (range 16) 96 | -11/Scrapyard | Entered Materials 287 | -10/Materials | Discovered new exit (range 4) 315 | -10/Materials | Build established: Mutant 489 | -10/Materials | Discovered new exit (range 8) 780 | -10/Materials | Discovered new exit (range 3) 785 | -10/Materials | Identified exit to Materials 815 | -10/Materials | Identified exit to Mines 873 | -10/Materials | Core integrity fell below 50% 930 | -10/Materials | Lost 3 parts (1p1u1w) 1305 | -10/Materials | Discovered new exit (range 8) 1312 | -10/Materials | Identified exit to Subcaves 1457 | -10/Materials | Entered Subcaves 1529 | -10/Subcaves | Shifting Twisted Machinery released Mak. Hacking Suite 1544 | -10/Subcaves | Ambushed by swarm of Subdwellers 1550 | -10/Subcaves | Core integrity fell below 20% 1554 | -10/Subcaves | Shifting Twisted Machinery released Sub. Shrapnel Launcher 1568 | -10/Subcaves | Shifting Twisted Machinery released Mak. Hacking Suite 1586 | -10/Subcaves | Destroyed by 58-7S4(R) with Subdweller Laser Last Messages --------------- on point searching for advanced tech we've heard is being developed in secret down here, seen anything like that?" 01459_ BE-LDI(h) drops a Scrap Shield: "Protect yourself with this!" 01464_ Acquired Scrap Shield. 01464_ BE-LDI(h) suffers critical hit (Destroy). 01489_ Acquired 10 matter. 01495_ Subatomizers dissect the Sub. Monowheel. 01506_ G0-BSY(u) builds Twisted Machinery. Mak. Hacking Suite falls loose from the Twisted Machinery. 01547_ 9E-WDA(R) emerges from the Twisted Machinery. Sub. Shrapnel Launcher falls loose from the Twisted Machinery. 01564_ Wheel destroyed. Mak. Hacking Suite falls loose from the Twisted Machinery. 01572_ Acquired Mak. Hacking Suite. 01577_ 9E-WDA(R) destroyed. 01578_ 5X-7KR(z): "She is not going to be happy we haven't found any suitable candidates yet." 01578_ Lgt. Armor Plating destroyed. 01584_ 58-7S4(R): "ECOKILL!" 01586_ 3L-Q3B(R) destroyed. Map ----- +----------------------------------------------------+ | ?????????????????????????????????????????????????? | | ?????????????????????????????????????????????????? | | ?????????????????????????????????????????????????? | | ?????????????????????????????????????????????????? | | ?????????????????????????????????????????????????? | | ?????????????????????????????????????????????????? | | ?????????????????????????????????????????????????? | | ?????????????????????????????????????????????????? | | ?????????????????????????????????????????????????? | | ?????????????????????????????????????????????????? | | ?????????????????????????????????????????????????? | | ?????????????????????????????????????????????????? | | ???????????????????????"?????????????????????????? | | ?????????????????????" =?????????????????????????? | | ?????????????????????#""%????????????????????????? | | ??????????????????#### R"????????????????????????? | | ????????????????### ????????????????????????? | | ????????????????#"" ????????????????????????? | | ?????????????????" %????????????????????????? | | ?????????????????? ????????????????????????? | | ??????????????????? ##??????????????????????? | | ???????????????????? ##?????????????????????? | | ????????????????????? #?????????????????????? | | ??????????????????????# #????##???????????????? | | ???????????????????????# #???# ##??????????????? | | ????????????????????????#@ #??? ##?????????????? | | ????????????????????????# #??? #### ?????????? | | ???????????????????????## #??# ?????????? | | ???????????????????????# ### ????????? | | ???????????????????????# #???????????????? | | ???????????????????????## #???????????????? | | ????????????????????????# #???????????????? | | ????????????????????????# ##???????????????? | | ????????????????????????#### ##????????????????? | | ???????????????????????????#! #?????????????????? | | ????????????????????########%! ##????????????????? | | ????????????????##### " #"=RR ##???????????????? | | ???????????????#""" "" ##??????????????? | | ????????????????# " " ##?????????????? | | ????????????????###"""" R #???? ????????? | | ??????????????????####" ! ##??? ???????? | | ?????????????????????###### [% ##??? ??????? | | ??????????######???##########! ###??? ???????? | | ?????????# ## ]" # #???? #????????? | | ????????? "" #### #?????????? | | ????????? " #??????????? | | ??????????????#### ## # ## ##???????????? | | ?????????????????##???####### ###????????????? | | ???????????????????##???????# ####??????????????? | | ??????????????????## #?????## #?????????????????? | +----------------------------------------------------+ Best States ------------- Heat Dissipation 25 Energy Generation 14 Energy Capacity 250 Matter Stores 300 Matter Capacity 300 Sight Range 16 Terrain Scan Density 10 Armor Coverage 150 Evasion (%) 55 Item Schematics ----------------- None Robot Schematics ------------------ None Fabricated ------------ Nothing Alien Tech Used ----------------- None Achievements -------------- None Challenges ------------ None Game ------ Seed WardroneSpreadNanoactuators Manual? 0 Play Time 00:28:08 Cumulative 19.2 hours Start 2024.08.28 @ 16:25:59 End 2024.12.15 @ 00:07:35 Sessions 2 Manual Loads 0 Difficulty Rogue Special Mode None Game No. 20 Rogue 14 Adventurer 6 Explorer 0 Win Type - Total 0 Types 0/0/0/0/0/0/0/0/0 Lore% 14 Gallery% 22 Achievement% 25 Wizard Run 0 Options --------- Layout 0 ASCII 0 Keyboard 1 Movement Numpad Keybinds 0 Fullscreen 2 Font 36/Smallcaps Map View 76x50 Zoom Use 0% Tactical HUD 1 Map Filters NONE Filters NONE Steam 1 RUN: dfad52ea-21f6-4058-b3e0-83763d919fff